Cogmind - Beta 17 @@@ ROGUE MODE // 2026.06.27 @ 14:15:07 Player: Lazz Result: Destroyed by G-73 Enforcer with Phase Gun Performance ------------- Evolutions (8) 4000 Regions Visited (22) 4400 Robots Destroyed (122) 610 Value Destroyed (6437) 6437 Prototype IDs (22) 440 Alien Tech Used (1) 200 Bonus (4470) 4470 TOTAL SCORE: 20557 Bonus ------- High Alert Combat Kills 56 Follower Combat Kills 614 Awakened Behemoth Slayer 1000 Met Data Miner 300 Met R17 at Cetus 500 Met R17 at Research 2000 Cogmind --------- Core Integrity 0/1450 Matter 0/300 Energy 125/125 System Corruption 34% Temperature Cool (0) Movement Core (200) Ox3 Location -2/Section 7 Parts ------- > --- POWER (3) -------- Light Ion Engine > --- PROPULSION (7) --- (None) > --- UTILITY (8) ------ Microwarp Drive > --- WEAPON (5) ------- CR-A16's Behemoth Slayer > --- INVENTORY (5) ---- Q-thruster Portable AFG (60) Peak State ------------ > --- POWER ------------ Particle Reactor Light Quantum Reactor > --- PROPULSION ------- Experimental Biometal Heavy Treads Experimental Biometal Heavy Treads Experimental Biometal Heavy Treads Centrium Wheel > --- UTILITY ---------- Advanced Heat Sink Advanced Cooling System Advanced Visual Processing Unit Improved Signal Interpreter Advanced Weapon Cycler Centrium Light Armor Plating Centrium Light Armor Plating Focal Shield > --- WEAPON ----------- Heavy Machine Gun Advanced KE Penetrator Linear Accelerator Linear Accelerator Compact Linear Accelerator > --- INVENTORY -------- Experimental Biometal Heavy Treads Improved Hacking Suite Phase Gun CR-A16's Behemoth Slayer [Rating: 175] Favorites ----------- Power Particle Reactor Engine Improved Ion Engine Power Core Neutrino Core Reactor Particle Reactor Propulsion Flexi-carbon Leg Treads Experimental Biometal Heavy Treads Leg Flexi-carbon Leg Wheel Centrium Wheel Hover Unit Antigrav System Flight Unit Xenon Bombardment Thruster Utility Improved Signal Interpreter Device Advanced Cooling System Storage Small Storage Unit Processor Improved Signal Interpreter Hackware System Shield Protection Centrium Light Armor Plating Artifact Microwarp Drive Weapon Advanced KE Penetrator Energy Gun Backup Laser III Energy Cannon HERF Cannon Ballistic Gun Advanced KE Penetrator Ballistic Cannon Linear Accelerator Launcher Missile Launcher Impact Weapon Shock Maul Piercing Weapon CR-A16's Behemoth Slayer Build | -11 -10 -9 -9 -8 -7 -7 -7 -7 -6 -6 -6 -6 -6 -5 -5 -4 -4 -4 -3 -2 -2 -2 ------- Run | Yrd Mat Mat Min Mat Fac Low Low Zio Pro Fac Low Low Dat Pro Fac Fac Ext Cet Res Res Tes Sec Slots Evolved 16 | . . 2 . 2 2 . . . . 2 . . . . 2 2 . . 2 2 . . Power 2 | . . . . . . . . . . . . . . . 1 . . . . 1 . . Propulsion 5 | . . 1 . 2 . . . . . . . . . . 1 1 . . . . . . Utility 6 | . . . . . 2 . . . . 2 . . . . . . . . 2 . . . Weapon 3 | . . 1 . . . . . . . . . . . . . 1 . . . 1 . . Parts Attached 183 | 7 . 8 . 9 12 1 4 1 . 6 2 1 . 5 19 15 24 10 37 15 4 3 Power 24 | 1 . 1 . . 2 . . 1 . 1 . . . 1 . 2 6 2 4 2 . 1 Engine 8 | 1 . 1 . . 2 . . 1 . . . . . . . 1 1 . . . . 1 Core 7 | . . . . . . . . . . 1 . . . 1 . 1 3 1 . . . . Reactor 9 | . . . . . . . . . . . . . . . . . 2 1 4 2 . . Propulsion 69 | 2 . 4 . 6 7 . 1 . . 1 1 . . 2 9 4 2 . 18 8 3 1 Treads 18 | 2 . 4 . . . . . . . . . . . . 1 1 . . . 7 3 . Leg 26 | . . . . . . . . . . . . . . . 3 2 2 . 18 . . 1 Wheel 1 | . . . . . . . . . . . . . . . . . . . . 1 . . Hover 1 | . . . . . . . . . . . . . . . 1 . . . . . . . Flight 23 | . . . . 6 7 . 1 . . 1 1 . . 2 4 1 . . . . . . Utility 43 | 2 . . . . 3 . . . . 3 . 1 . 1 6 1 11 2 11 1 . 1 Device 23 | 1 . . . . . . . . . 1 . 1 . 1 3 . 9 . 7 . . . Storage 1 | 1 . . . . . . . . . . . . . . . . . . . . . . Processor 4 | . . . . . . . . . . . . . . . 2 1 1 . . . . . Hackware 7 | . . . . . 3 . . . . 2 . . . . 1 . . . . 1 . . Protection 7 | . . . . . . . . . . . . . . . . . 1 2 4 . . . Artifact 1 | . . . . . . . . . . . . . . . . . . . . . . 1 Weapon 47 | 2 . 3 . 3 . 1 3 . . 1 1 . . 1 4 8 5 6 4 4 1 . Energy Gun 10 | . . . . . . . . . . . . . . 1 2 2 2 . . 2 1 . Energy Cannon 1 | . . . . . . . . . . . . . . . . 1 . . . . . . Ballistic Gun 22 | 2 . 2 . 2 . 1 2 . . . 1 . . . 1 4 1 5 1 . . . Ballistic Cannon 9 | . . . . 1 . . . . . . . . . . . 1 2 1 3 1 . . Launcher 2 | . . 1 . . . . 1 . . . . . . . . . . . . . . . Special Weapon . | . . . . . . . . . . . . . . . . . . . . . . . Impact Weapon 1 | . . . . . . . . . . . . . . . . . . . . 1 . . Slashing Weapon . | . . . . . . . . . . . . . . . . . . . . . . . Piercing Weapon 2 | . . . . . . . . . . 1 . . . . 1 . . . . . . . Special Melee Weapon . | . . . . . . . . . . . . . . . . . . . . . . . Unidentified Prototypes 8 | . . . . . . . . . . 1 . . . . . . . 2 2 2 . 1 Parts Lost 83 | . . 1 . . . 1 1 . . 3 4 1 . 14 12 9 4 2 8 20 3 . Power 12 | . . 1 . . . . . . . . . . . 1 3 2 . 1 . 4 . . Propulsion 26 | . . . . . . . 1 . . 1 2 . . 6 7 3 . . 2 4 . . Utility 22 | . . . . . . . . . . 1 . 1 . 4 2 1 1 . 3 7 2 . Weapon 23 | . . . . . . 1 . . . 1 2 . . 3 . 3 3 1 3 5 1 . Highest Loss Streak 13 | . . 1 . . . 1 1 . . 2 3 1 . 10 5 5 1 2 5 13 1 . To Critical Strikes 1 | . . . . . . . . . . . . . . . 1 . . . . . . . Average Backups 4 | 1 3 6 7 7 7 7 7 8 8 7 6 4 4 4 4 3 4 4 4 3 2 1 Power . | . . . . . . 1 1 1 1 1 1 1 1 1 . . 1 . . . . . Propulsion . | . . 1 3 . 2 2 2 2 2 2 1 . . . . . . . . . 1 . Utility . | . 1 1 1 2 1 1 1 2 2 2 2 2 2 2 1 1 . . . . . . Weapon 2 | 1 2 3 3 4 4 3 3 3 2 2 1 1 1 . 1 2 2 3 4 1 . . Tool/Special . | . . . . . . . . . . . . . . . . . . . . . . . Unused Backups 16 | . . . 2 . 4 . . 2 . . . . . . 1 . 2 . 2 1 1 1 Power 1 | . . . . . . . . . . . . . . . 1 . . . . . . . Propulsion 5 | . . . . . 1 . . . . . . . . . . . 2 . . . 1 1 Utility 3 | . . . . . 2 . . 1 . . . . . . . . . . . . . . Weapon 7 | . . . 2 . 1 . . 1 . . . . . . . . . . 2 1 . . Tool/Special . | . . . . . . . . . . . . . . . . . . . . . . . Average Slot Usage (%) 76 | . 100 95 100 93 97 100 100 100 100 89 93 92 93 53 47 57 71 77 87 76 16 5 Engine 2 | . 14 10 11 9 7 7 7 7 7 2 . . . . 4 3 2 . . . . . Core 1 | . . . . . . . . . . 3 6 6 6 4 . . 4 4 . . . . Reactor 3 | . . . . . . . . . . . . . . . . . 1 5 9 5 . . Treads 5 | . 28 30 33 1 . . . . . . . . . . . . . . . 12 7 . Leg 8 | . . . . . . . . . . . . . . . 8 8 13 15 21 1 . 3 Flight 7 | . . . . 37 38 38 38 38 38 31 31 33 33 20 3 3 . . . . . . Device 9 | . 14 11 11 9 1 . . . . . 6 5 6 1 7 . 12 10 18 14 . . Storage 2 | . 14 11 11 9 7 7 7 7 7 6 6 6 6 3 . . . . . . . . Processor 5 | . . . . . . . . . . . . . . . 4 8 10 10 9 8 3 . Hackware 6 | . . . . . 18 23 23 23 23 25 26 26 26 14 9 10 4 . . . . . Protection 3 | . . . . . . . . . . . . . . . . . 1 9 8 6 . . Energy Gun 1 | . . . . . . . . . . . . . . 1 4 6 7 1 . 1 2 . Ballistic Gun 11 | . 28 29 33 22 23 23 22 23 15 9 5 6 6 3 . 8 3 12 13 6 . . Ballistic Cannon 3 | . . . . 4 . . . . 6 6 6 6 6 1 . . 4 5 4 10 . . Peak Build Rating 175 | 9 9 14 15 16 39 39 41 43 43 53 52 49 49 49 52 87 110 120 143 175 75 53 Average Rating 82 | 6 9 12 14 15 24 38 40 42 42 47 51 46 49 30 35 66 97 111 133 162 44 15 On Entrance 41 | . 9 9 14 15 16 39 38 41 43 42 52 45 49 49 10 28 78 108 119 143 12 3 Avg Prop Armor Cover (%) 8 | . . . . . . . . 2 2 2 . . . . 19 1 16 . . 9 25 29 Naked Turns 35 | . . . . . . . . . . . . . . . . . . . . . 31 4 Heaviest Build 88 | 15 15 21 21 20 18 15 18 22 23 23 26 20 20 22 14 35 70 77 88 85 18 11 Greatest Support 255 | 40 40 60 60 25 30 30 30 30 24 30 30 26 26 26 60 100 120 120 163 255 140 25 Greatest Overweight (x) 3 | . . . . . . . . . . . . . . 1 3 2 . . . 2 2 3 Average Overweight (x) . | . . . . . . . . . . . . . . . . . . . . . . . Largest Inventory Capacity 8 | 8 8 8 8 8 8 8 8 8 8 8 8 8 8 8 5 5 5 5 5 5 5 5 Average Capacity 5 | 7 8 8 8 8 8 8 8 8 8 8 8 8 8 6 5 5 5 5 5 5 5 5 Most Carried 8 | 3 4 8 8 8 8 8 8 8 8 8 7 4 4 6 5 5 5 5 5 5 5 4 Average Carried 5 | 1 3 6 7 7 7 7 7 8 8 7 6 4 4 4 4 3 4 4 4 4 4 2 Final Capacity 8 | 8 8 8 8 8 8 8 8 8 8 8 8 8 8 5 5 5 5 5 5 5 5 5 Final Carried 8 | 3 4 8 8 8 8 7 8 8 8 7 5 4 4 5 5 5 5 5 5 5 4 2 Class Distribution -------------------- 41% | Scavenger-Tank 15% | Hacker-Sprinter 12% | Mutant 9% | Scavenger-Skirmisher 7% | Hacker-Gunner 5% | Hacker-Mutant 3% | Scavenger-Sprinter Dominant Class ---------------- Mutant | -10/Materials Scavenger-Skirmisher | -9/Materials Scavenger-Skirmisher | -9/Mines Scavenger-Sprinter | -8/Materials Scavenger-Sprinter | -7/Factory Hacker-Sprinter | -7/Lower Caves Hacker-Sprinter | -7/Lower Caves Hacker-Sprinter | -7/Zion Hacker-Sprinter | -6/Proximity Caves Hacker-Sprinter | -6/Factory Hacker-Sprinter | -6/Lower Caves Hacker-Sprinter | -6/Lower Caves Hacker-Sprinter | -6/Data Miner Mutant | -5/Proximity Caves Hacker-Mutant | -5/Factory Hacker-Gunner | -4/Factory Scavenger-Skirmisher | -4/Extension Scavenger-Tank | -4/Cetus Scavenger-Tank | -3/Research Scavenger-Tank | -2/Research Mutant | -2/Testing Mutant | -2/Section 7 Resources | -11 -10 -9 -9 -8 -7 -7 -7 -7 -6 -6 -6 -6 -6 -5 -5 -4 -4 -4 -3 -2 -2 -2 ----------- Run | Yrd Mat Mat Min Mat Fac Low Low Zio Pro Fac Low Low Dat Pro Fac Fac Ext Cet Res Res Tes Sec Matter Collected 5784 | 294 32 241 43 197 . 85 233 16 10 . 82 . . 160 123 366 711 559 1616 996 . 20 Remotely . | . . . . . . . . . . . . . . . . . . . . . . . Salvage Created 5418 | 84 32 345 63 46 20 43 193 . . 28 20 . . 241 125 436 1210 513 1128 871 . 20 Parts 264 | 6 3 22 9 7 5 1 12 . . 8 2 . . 13 8 16 45 19 47 37 . 4 Haulers Intercepted 1 | . . . . . . . . . . . . . . . . . 1 . . . . . Recyclers Shooed 4 | 1 . . . . . . . . . . . . . . . 2 1 . . . . . Parts Field Recycled . | . . . . . . . . . . . . . . . . . . . . . . . Retrieved Matter . | . . . . . . . . . . . . . . . . . . . . . . . Parts Self-Destructed 17 | . . . . . . 1 9 . . . . . . 7 . . . . . . . . Prevented . | . . . . . . . . . . . . . . . . . . . . . . . Parts Restored . | . . . . . . . . . . . . . . . . . . . . . . . Kills | -11 -10 -9 -9 -8 -7 -7 -7 -7 -6 -6 -6 -6 -6 -5 -5 -4 -4 -4 -3 -2 -2 -2 ------- Run | Yrd Mat Mat Min Mat Fac Low Low Zio Pro Fac Low Low Dat Pro Fac Fac Ext Cet Res Res Tes Sec Combat Hostiles Destroyed 101 | . 1 7 4 4 . 1 8 . . 1 1 . . 4 5 7 13 8 18 19 . . Guns 58 | . 1 4 4 3 . 1 5 . . . . . . 2 5 5 6 4 13 5 . . Cannons 33 | . . . . 1 . . . . . . 1 . . 1 . 1 6 4 5 14 . . AOE 7 | . . 3 . . . . 3 . . 1 . . . . . . . . . . . . Classes Destroyed 16 | 2 1 3 1 . . 1 . . . 2 . . . 1 . . 2 . 3 . . . Worker 4 | . . . . . . . . . . 1 . . . . 1 . . . 1 . . 1 Builder 3 | . . . . . . . . . . 1 . . . . . . . . . 2 . . Tunneler 1 | 1 . . . . . . . . . . . . . . . . . . . . . . Hauler 1 | . . . . . . . . . . . . . . . . . 1 . . . . . Recycler 3 | 1 . . . . . . . . . . . . . . . 1 1 . . . . . Operator 4 | . . 1 . . 1 . . . . . . . . . . 1 1 . . . . . Watcher 4 | . . 1 . . . . . . . . . . . . . . . 2 1 . . . Swarmer 37 | . . . 4 4 . . 7 . . 1 1 . . 3 5 5 . . 3 4 . . Grunt 23 | . 1 4 . . . . . . . . . . . . . 1 8 . 1 8 . . Sentry 8 | . . 3 . . . . . . . . . . . . . 1 3 . 1 . . . Demolisher 2 | . . . . . . . . . . . . . . . . . . . 2 . . . Hunter 6 | . . . . . . . . . . . . . . . . . . . 4 2 . . Programmer 10 | . . . . . . 1 1 . . . . . . . . . 1 . 2 5 . . Behemoth 2 | . . . . . . . . . . . . . . 1 . . 1 . . . . . Cetus Guard 8 | . . . . . . . . . . . . . . . . . . 8 . . . . Striker 4 | . . . . . . . . . . . . . . . . . . . 4 . . . Executioner 1 | . . . . . . . . . . . . . . . . . . . 1 . . . Guerrilla 1 | . . . . . . . . . . . . . . . . . 1 . . . . . Best Kill Streak 5 | 2 1 4 4 4 1 1 4 . . 3 1 . . 3 5 4 3 4 5 5 . 1 Combat Bots Only 5 | . 1 4 4 4 . 1 4 . . 1 1 . . 3 4 4 3 4 5 4 . . Max Kills in Single Turn 3 | 1 1 2 1 1 1 1 3 . . 3 1 . . 1 2 2 2 2 2 2 . 1 Gunslinging . | . . . . . . . . . . . . . . . . . . . . . . . Exploded 3 | . . 2 . . . . 3 . . 1 . . . . . . . . . . . . Melee . | . . . . . . . . . . . . . . . . . . . . . . . Uniques/NPCs Destroyed . | . . . . . . . . . . . . . . . . . . . . . . . Combat | -11 -10 -9 -9 -8 -7 -7 -7 -7 -6 -6 -6 -6 -6 -5 -5 -4 -4 -4 -3 -2 -2 -2 -------- Run | Yrd Mat Mat Min Mat Fac Low Low Zio Pro Fac Low Low Dat Pro Fac Fac Ext Cet Res Res Tes Sec Hostile Shots Fired 1478 | . 6 36 32 17 10 25 38 . . 48 24 20 . 49 139 65 67 70 234 454 139 5 Missed 542 | . 2 10 6 7 5 9 16 . . 30 10 8 . 20 58 18 16 22 76 172 55 2 Hits 936 | . 4 26 26 10 5 16 22 . . 18 14 12 . 29 81 47 51 48 158 282 84 3 Melee 11 | . . . . . . . . . . . . . . . . . . . 11 . . . Projectile 925 | . 4 26 26 10 5 16 22 . . 18 14 12 . 29 81 47 51 48 147 282 84 3 AOE 2 | . . . . . . . . . . . . . . . . . . . 2 . . . Critical Strikes 41 | . . 2 . . . . . . . . . . . 3 3 3 . 8 7 11 4 . Part Disruptions 2 | . . . . . . 1 . . . . . . . . . . . . . 1 . . Damage Taken 19649 | . 42 369 218 84 37 279 341 . . 241 205 210 . 679 1596 1563 1178 1292 3581 5649 1909 176 Core 3486 | . 10 14 23 27 32 121 66 . . 56 44 30 . 272 610 193 51 74 387 657 703 116 Absorbed by Shields . | . . . . . . . . . . . . . . . . . . . . . . . Reduced by Siege Mode 12 | . . . . . . . . . . . . . . . . . . . . 12 . . Ignored by Resistances 695 | . . . . . . . . . . . . . . . . . . . 562 133 . . Core Remaining (%) 75 | 100 96 . 90 95 . . . . 68 . . . . 52 39 . . 72 70 . . . Volleys Fired 314 | 4 6 20 6 6 5 10 11 . . 5 2 . . 14 15 33 40 29 63 44 1 . Largest 5 | 2 2 3 3 3 3 3 3 . . 2 2 . . 2 3 4 4 4 4 5 1 . Hottest 284 | 40 40 70 66 73 63 60 71 . . 53 56 . . 69 225 191 259 259 182 284 54 . Shots Fired 987 | 8 12 52 18 18 15 29 29 . . 9 3 . . 18 35 111 110 108 240 171 1 . Gun 714 | 8 12 50 18 12 15 29 28 . . 4 1 . . 14 35 102 66 67 185 68 . . Cannon 269 | . . . . 6 . . . . . 4 2 . . 4 . 9 44 41 55 103 1 . Launcher 4 | . . 2 . . . . 1 . . 1 . . . . . . . . . . . . Special . | . . . . . . . . . . . . . . . . . . . . . . . Kinetic 836 | 8 12 50 18 18 15 29 28 . . 8 3 . . 13 10 64 57 95 240 167 1 . Thermal 123 | . . . . . . . . . . . . . . 5 25 43 40 6 . 4 . . Explosive 4 | . . 2 . . . . 1 . . 1 . . . . . . . . . . . . Electromagnetic 24 | . . . . . . . . . . . . . . . . 4 13 7 . . . . Robot Hit Streak 23 | 4 3 16 2 3 4 6 4 . . 3 1 . . 4 4 13 8 12 9 23 . . Robot Miss Streak 8 | 1 5 3 4 2 1 1 3 . . 3 2 . . 3 3 4 6 4 6 8 . . Penetration Max 1 | . . . . . . . . . . . . . . . . . 1 1 1 1 . . Secondary Targets 6 | . . . 2 . . . . . . . . . . . 1 2 . . 1 . . . Max Gunslinging Chain 1 | . . . 1 . . . . . . . . . . . 1 1 . . 1 . . . Shots Hit Robots 566 | 5 6 36 8 7 8 22 16 . . 4 1 . . 14 21 71 59 69 124 94 . 1 Core Hits 256 | 3 2 16 4 4 3 4 14 . . 6 1 . . 8 11 26 34 29 46 42 . 3 Critical Kills 19 | . . . . . . . . . . . . . . . . 1 5 5 6 2 . . Critical Parts Destroyed 27 | . . . . . . 1 . . . . . . . . . 1 2 7 15 1 . . Critical Strikes 67 | . . . . . . 1 . . . . . . . . . 3 11 17 26 9 . . Burn 1 | . . . . . . . . . . . . . . . . . 1 . . . . . Destroy 56 | . . . . . . 1 . . . . . . . . . 3 8 17 24 3 . . Blast 10 | . . . . . . . . . . . . . . . . . 2 . 2 6 . . Melee Attacks 25 | . . . . . . . . . . 1 . . . 8 2 7 1 . . 3 1 2 Impact . | . . . . . . . . . . . . . . . . . . . . . . . Slashing . | . . . . . . . . . . . . . . . . . . . . . . . Piercing 25 | . . . . . . . . . . 1 . . . 8 2 7 1 . . 3 1 2 Sneak Attacks 2 | . . . . . . . . . . . . . . . . . . . . 1 . 1 Combat Hostiles . | . . . . . . . . . . . . . . . . . . . . . . . Follow-up Attacks . | . . . . . . . . . . . . . . . . . . . . . . . Damage Inflicted 15339 | 64 77 595 145 100 81 218 448 . . 251 36 . . 341 441 1231 1797 1946 3870 3625 . 73 Guns 9094 | 64 77 475 145 53 81 218 216 . . 8 18 . . 160 440 926 878 1313 2911 1111 . . Cannons 5439 | . . . . 47 . . . . . 57 18 . . 58 . 305 919 633 959 2443 . . Explosions 538 | . . 120 . . . . 232 . . 186 . . . . . . . . . . . . Melee 220 | . . . . . . . . . . . . . . 123 . . . . . 49 . 48 Ramming 48 | . . . . . . . . . . . . . . . 1 . . . . 22 . 25 Kinetic 12515 | 64 77 475 145 100 81 218 216 . . 65 36 . . 141 108 728 975 1719 3870 3497 . . Thermal 1502 | . . . . . . . . . . . . . . 77 332 353 552 131 . 57 . . Explosive 538 | . . 120 . . . . 232 . . 186 . . . . . . . . . . . . Electromagnetic 516 | . . . . . . . . . . . . . . . . 150 270 96 . . . . Impact . | . . . . . . . . . . . . . . . . . . . . . . . Slashing . | . . . . . . . . . . . . . . . . . . . . . . . Piercing 220 | . . . . . . . . . . . . . . 123 . . . . . 49 . 48 Highest Corruption 34 | . . . . . . 3 3 3 . . . . . . . . . . . 30 32 34 Average Corruption 16 | . . . . . . 2 3 3 . . . . . . . . . . . 11 30 32 Corruption Purged . | . . . . . . . . . . . . . . . . . . . . . . . Corruption Blocked . | . . . . . . . . . . . . . . . . . . . . . . . Effects 63 | . . . . . . 1 5 . . . . . . . . . . . . 36 16 5 Message Errors 13 | . . . . . . 1 . . . . . . . . . . . . . 7 3 2 Matter Fused 12 | . . . . . . . 1 . . . . . . . . . . . . 8 2 1 Heat Flow Errors 3 | . . . . . . . . . . . . . . . . . . . . 2 1 . Energy Discharges 4 | . . . . . . . . . . . . . . . . . . . . . 3 1 Parts Rejected 1 | . . . . . . . . . . . . . . . . . . . . . 1 . Parts Fused 3 | . . . . . . . 1 . . . . . . . . . . . . 1 1 . Data Loss (minor) 9 | . . . . . . . 1 . . . . . . . . . . . . 5 2 1 Data Loss (major) 2 | . . . . . . . 1 . . . . . . . . . . . . 1 . . Misfires 5 | . . . . . . . . . . . . . . . . . . . . 5 . . Alerts 2 | . . . . . . . 1 . . . . . . . . . . . . 1 . . Misdirections 7 | . . . . . . . . . . . . . . . . . . . . 4 3 . Weapon Failures 2 | . . . . . . . . . . . . . . . . . . . . 2 . . Overload Shots 3 | . . . . . . . . . . . . . . . 3 . . . . . . . Overflow Damage 216 | . . . . 3 . . . . . . . . . . . 29 . . 33 151 . . Projectiles 178 | . . . . 3 . . . . . . . . . . . . . . 33 142 . . Explosions 29 | . . . . . . . . . . . . . . . . 29 . . . . . . Melee 9 | . . . . . . . . . . . . . . . . . . . . 9 . . Knockbacks 50 | . . . . 1 . . . . . . . . . 1 . . 3 . 12 33 . . Impact . | . . . . . . . . . . . . . . . . . . . . . . . Kinetic 45 | . . . . 1 . . . . . . . . . 1 . . 3 . 12 28 . . Secondary 5 | . . . . . . . . . . . . . . . . . . . . 5 . . Self-Inflicted Damage 248 | . . . . . . . . . . . . . . . . 169 . . . 63 . 16 Shots 3 | . . . . . . . . . . . . . . . . 2 . . . 1 . . Rammed 11 | . . . . . . . . . . . . . . . 2 . . . . 3 2 4 Targets Rammed 12 | . . . . . . . . . . . . . . . 2 . . . . 4 2 4 Kicked . | . . . . . . . . . . . . . . . . . . . . . . . Crushed 1 | . . . . . . . . . . . . . . . . . . . . 1 . . Highest Temperature 403 | . . 33 . 36 32 126 148 104 . 29 12 . . 286 403 254 364 12 44 172 253 . Average Temperature 52 | . . 14 . 20 13 38 40 48 . 10 9 . . 67 120 66 138 5 19 52 134 . Received Heat Transfer 1711 | . 24 186 . 9 12 18 . . . 33 . . . 379 180 75 252 . 48 207 279 9 Effects 4 | . . . . . . . . . . . . . . 1 3 . . . . . . . Energy Bleed 2 | . . . . . . . . . . . . . . 1 1 . . . . . . . Interference 1 | . . . . . . . . . . . . . . . 1 . . . . . . . Matter Decay 1 | . . . . . . . . . . . . . . . 1 . . . . . . . Siege Activations 3 | . . . . . . . . . . . . . . . . . . . . 3 . . Total Turns 30 | . . . . . . . . . . . . . . . . . . . . 30 . . Longest Duration 12 | . . . . . . . . . . . . . . . . . . . . 12 . . Martial Activations . | . . . . . . . . . . . . . . . . . . . . . . . Shielding Activations . | . . . . . . . . . . . . . . . . . . . . . . . Robots Disrupted . | . . . . . . . . . . . . . . . . . . . . . . . Combat Hostiles . | . . . . . . . . . . . . . . . . . . . . . . . Robots Corrupted . | . . . . . . . . . . . . . . . . . . . . . . . Combat Hostiles . | . . . . . . . . . . . . . . . . . . . . . . . Parts Fried 1 | . . . . . . . . . . . . . . . . 1 . . . . . . Impact Corruptions . | . . . . . . . . . . . . . . . . . . . . . . . Robots Melted 1 | . . . . . . . . . . . . . . . . 1 . . . . . . Combat Hostiles 1 | . . . . . . . . . . . . . . . . 1 . . . . . . Parts Melted 8 | . . . . . . . . . . . . . . . 1 6 1 . . . . . Heat Transferred 3036 | . . . . . . . . . . . . . . 148 594 999 1036 185 . 74 . . Parts Sabotaged . | . . . . . . . . . . . . . . . . . . . . . . . Parts Stolen . | . . . . . . . . . . . . . . . . . . . . . . . Parts Stripped . | . . . . . . . . . . . . . . . . . . . . . . . Power Chain Reactions . | . . . . . . . . . . . . . . . . . . . . . . . Alert | -11 -10 -9 -9 -8 -7 -7 -7 -7 -6 -6 -6 -6 -6 -5 -5 -4 -4 -4 -3 -2 -2 -2 ------- Run | Yrd Mat Mat Min Mat Fac Low Low Zio Pro Fac Low Low Dat Pro Fac Fac Ext Cet Res Res Tes Sec Maximum Alert Level 2 | . . . . . . . . . . . . . . . 1 1 2 1 1 2 . . Low Security (%) 78 | 100 100 100 100 100 100 . . . . 100 . . . . 76 75 62 42 93 51 100 100 Level 1 18 | . . . . . . . . . . . . . . . 23 24 31 57 6 39 . . Level 2 2 | . . . . . . . . . . . . . . . . . 6 . . 9 . . Level 3 . | . . . . . . . . . . . . . . . . . . . . . . . Level 4 . | . . . . . . . . . . . . . . . . . . . . . . . Level 5 . | . . . . . . . . . . . . . . . . . . . . . . . High Security . | . . . . . . . . . . . . . . . . . . . . . . . Max Security . | . . . . . . . . . . . . . . . . . . . . . . . Peak Influence 429 | 10 30 126 107 111 71 . . . . 125 . . . . 268 247 413 260 271 429 148 72 Initial 220 | . . . 27 . 50 . . . . . . . . . . 56 65 220 106 145 138 72 Average 124 | 1 3 90 52 62 32 . . . . 31 . . . . 146 169 185 200 76 210 91 30 Influence Increases 5211 | 10 37 231 90 151 111 150 205 . . 185 170 . . 120 628 431 918 212 674 718 150 20 Destroy 0b10 Robot/C 2260 | . 20 140 80 80 . 20 160 . . 20 20 . . 80 100 140 500 160 360 380 . . Destroy 0b10 Robot/NC 125 | 10 . 10 . . 5 . . . . 10 . . . 5 5 10 35 10 10 10 . 5 Destroy Leader 408 | . 10 52 10 10 . 10 30 . . . . . . 20 20 20 64 . 102 60 . . Allied During Kill 173 | . . . . . . . . . . . . . . . . . 173 . . . . . Successful Hack 194 | . 6 12 . . 46 . . . . . . . . . 64 . 46 . 4 16 . . Disable Machine 210 | . . . . . . . . . . 15 . . . . 15 30 45 . 60 15 15 15 Destroy Structure 386 | . 1 17 . 1 . . . . . 5 . . . . 4 66 40 42 48 162 . . Partial Spotted 105 | . . . . . 15 . . . . . . . . . 75 . . . . . 15 . Lose Combat Pursuer 1350 | . . . . 60 45 120 15 . . 135 150 . . 15 345 165 15 . 90 75 120 . Influence Decreases 5211 | 10 37 160 161 40 204 63 141 169 . 60 167 65 63 120 512 412 658 429 593 731 268 148 Entered New Map 1093 | . . . 44 . 61 8 21 169 . . 47 25 63 . . 60 70 175 72 114 108 56 Time Decay 3015 | 10 37 150 117 40 70 45 110 . . 40 80 30 . 70 292 262 368 214 441 417 130 92 Search Patrol Dispatched 100 | . . . . . . . . . . . . . . . 100 . . . . . . . Lost Part 730 | . . 10 . . . 10 10 . . 20 40 10 . 50 120 90 40 20 80 200 30 . Lost Ally 200 | . . . . . . . . . . . . . . . . . 180 20 . . . . Purge Threat 73 | . . . . . 73 . . . . . . . . . . . . . . . . . Squads Dispatched 33 | . 1 2 . 1 . . . . . 3 . . . . 2 5 4 . 5 6 2 2 Investigation 7 | . . . . 1 . . . . . 2 . . . . . . 1 . 2 . 1 . Extermination 7 | . . . . . . . . . . 1 . . . . 1 1 . . . 3 1 . Reinforcement 17 | . 1 2 . . . . . . . . . . . . 1 4 3 . 3 3 . . Assault 2 | . . . . . . . . . . . . . . . . . . . . . . 2 Garrison . | . . . . . . . . . . . . . . . . . . . . . . . Intercept . | . . . . . . . . . . . . . . . . . . . . . . . Searches Triggered 1 | . . . . . . . . . . . . . . . 1 . . . . . . . Data Miner Redirects 1 | . . . . . . . . . . . . . . . . . 1 . . . . . Construction Impeded 5 | . . . . . . . . . . . . . . . . . 3 . . 2 . . Haulers Reinforced . | . . . . . . . . . . . . . . . . . . . . . . . Active Scanning Responses . | . . . . . . . . . . . . . . . . . . . . . . . Cargo Convoy Interrupts . | . . . . . . . . . . . . . . . . . . . . . . . Stealth | -11 -10 -9 -9 -8 -7 -7 -7 -7 -6 -6 -6 -6 -6 -5 -5 -4 -4 -4 -3 -2 -2 -2 --------- Run | Yrd Mat Mat Min Mat Fac Low Low Zio Pro Fac Low Low Dat Pro Fac Fac Ext Cet Res Res Tes Sec Distress Signals 20 | . . . . . . . . . . . . . . . 3 1 1 2 8 1 2 2 Communications Jammed . | . . . . . . . . . . . . . . . . . . . . . . . Distress Signals . | . . . . . . . . . . . . . . . . . . . . . . . Times Spotted 278 | . 3 11 4 9 7 5 9 . . 22 12 5 . 14 43 15 19 11 29 41 16 3 Peak Tracking Total 14 | . 2 6 4 4 3 8 4 . . 13 6 5 . 10 13 6 4 5 5 13 14 6 Tactical Retreats 41 | . . . . 2 2 4 1 . . 3 3 . . 1 12 3 1 . 4 2 3 . Traps | -11 -10 -9 -9 -8 -7 -7 -7 -7 -6 -6 -6 -6 -6 -5 -5 -4 -4 -4 -3 -2 -2 -2 ------- Run | Yrd Mat Mat Min Mat Fac Low Low Zio Pro Fac Low Low Dat Pro Fac Fac Ext Cet Res Res Tes Sec Traps Triggered 5 | . . . . . . . . . . . . . . . . . . . 2 2 1 . Indirectly . | . . . . . . . . . . . . . . . . . . . . . . . Trap Hack Attempts . | . . . . . . . . . . . . . . . . . . . . . . . Triggered . | . . . . . . . . . . . . . . . . . . . . . . . Disarmed . | . . . . . . . . . . . . . . . . . . . . . . . Reprogrammed . | . . . . . . . . . . . . . . . . . . . . . . . Reused . | . . . . . . . . . . . . . . . . . . . . . . . Traps Extracted . | . . . . . . . . . . . . . . . . . . . . . . . Installed . | . . . . . . . . . . . . . . . . . . . . . . . Triggered . | . . . . . . . . . . . . . . . . . . . . . . . Machines | -11 -10 -9 -9 -8 -7 -7 -7 -7 -6 -6 -6 -6 -6 -5 -5 -4 -4 -4 -3 -2 -2 -2 ---------- Run | Yrd Mat Mat Min Mat Fac Low Low Zio Pro Fac Low Low Dat Pro Fac Fac Ext Cet Res Res Tes Sec Machines Disabled 15 | . . . . . . . . . . 1 . . . . 1 2 3 . 4 1 2 1 Max in Single Turn 1 | . . . . . . . . . . 1 . . . . 1 1 1 . 1 1 1 1 Garrison Access 2 | . . . . . . . . . . . . . . . . . . . 1 . . 1 Machines Repaired . | . . . . . . . . . . . . . . . . . . . . . . . Machines Dismantled . | . . . . . . . . . . . . . . . . . . . . . . . Machines Sabotaged . | . . . . . . . . . . . . . . . . . . . . . . . Overloaded Fab Kills . | . . . . . . . . . . . . . . . . . . . . . . . Hacking | -11 -10 -9 -9 -8 -7 -7 -7 -7 -6 -6 -6 -6 -6 -5 -5 -4 -4 -4 -3 -2 -2 -2 --------- Run | Yrd Mat Mat Min Mat Fac Low Low Zio Pro Fac Low Low Dat Pro Fac Fac Ext Cet Res Res Tes Sec Machines Accessed 36 | . 1 1 . 3 5 . . 1 . 3 . . 4 . 3 1 4 2 1 2 2 3 Terminals 20 | . 1 1 . 2 4 . . . . . . . . . . 1 4 2 . 1 2 2 Fabricators 2 | . . . . . 1 . . . . 1 . . . . . . . . . . . . Repair Stations 1 | . . . . . . . . . . . . . . . 1 . . . . . . . Recycling Units 1 | . . . . . . . . . . 1 . . . . . . . . . . . . Scanalyzers 7 | . . . . 1 . . . . . 1 . . . . 2 . . . 1 1 . 1 Garrison Access . | . . . . . . . . . . . . . . . . . . . . . . . Total Hacks 122 | . 1 2 . 12 19 . . 2 . 13 . . 32 . 7 1 10 5 5 3 3 7 Successful 73 | . 1 2 . 5 12 . . 2 . 4 . . 32 . 4 1 3 1 3 1 . 2 Failed 47 | . . . . 6 7 . . . . 9 . . . . 3 . 7 4 1 2 3 5 Catastrophic 17 | . . . . 3 1 . . . . . . . . . 1 . 4 2 . 1 3 2 Database Lockouts 2 | . . . . 1 . . . . . . . . . . . . . . 1 . . . Manual 24 | . 1 . . 3 9 . . . . 4 . . 1 . . . 3 . . 2 . 1 Terminals 51 | . 1 2 . 5 18 . . . . . . . . . . 1 10 5 . 2 3 4 Fabricators 7 | . . . . . 1 . . . . 6 . . . . . . . . . . . . Repair Stations 2 | . . . . . . . . . . . . . . . 2 . . . . . . . Recycling Units 4 | . . . . . . . . . . 4 . . . . . . . . . . . . Scanalyzers 24 | . . . . 7 . . . . . 3 . . . . 5 . . . 5 1 . 3 Garrison Access . | . . . . . . . . . . . . . . . . . . . . . . . Terminal Hacks 51 | . . 2 . . 10 . . 2 . . . . 32 . . 1 2 1 . . . 1 Record 12 | . . . . . . . . . . . . . 11 . . . . 1 . . . . Part Schematic 16 | . . . . . 1 . . 2 . . . . 12 . . . 1 . . . . . Robot Schematic 7 | . . . . . 1 . . . . . . . 6 . . . . . . . . . Prototype ID Bank 4 | . . 1 . . . . . . . . . . 3 . . . . . . . . . Open Door 1 | . . . . . . . . . . . . . . . . 1 . . . . . . Branch Access Points 1 | . . . . . 1 . . . . . . . . . . . . . . . . . Emergency Access Points 1 | . . . . . . . . . . . . . . . . . . . . . . 1 Terminal Index 3 | . . . . . 2 . . . . . . . . . . . 1 . . . . . Unreport Threat 2 | . . . . . 2 . . . . . . . . . . . . . . . . . Maintenance Status 1 | . . . . . 1 . . . . . . . . . . . . . . . . . Registered Components 2 | . . 1 . . 1 . . . . . . . . . . . . . . . . . Zone Layout 1 | . . . . . 1 . . . . . . . . . . . . . . . . . Fabricator Hacks 4 | . . . . . 1 . . . . 3 . . . . . . . . . . . . Network Status 1 | . . . . . . . . . . 1 . . . . . . . . . . . . Load Schematic 1 | . . . . . . . . . . 1 . . . . . . . . . . . . Build 2 | . . . . . 1 . . . . 1 . . . . . . . . . . . . Repair Station Hacks 1 | . . . . . . . . . . . . . . . 1 . . . . . . . Refit 1 | . . . . . . . . . . . . . . . 1 . . . . . . . Recycling Unit Hacks . | . . . . . . . . . . . . . . . . . . . . . . . Scanalyzer 12 | . . . . 5 . . . . . . . . . . 3 . . . 3 . . 1 Insert Component 2 | . . . . . . . . . . . . . . . 1 . . . . . . 1 Retrieve Study 10 | . . . . 5 . . . . . . . . . . 2 . . . 3 . . . Garrison Access Hacks . | . . . . . . . . . . . . . . . . . . . . . . . Unauthorized Hacks 5 | . 1 . . . 1 . . . . 1 . . . . . . 1 . . 1 . . Terminals 4 | . 1 . . . 1 . . . . . . . . . . . 1 . . 1 . . Botnet 2 | . . . . . 1 . . . . . . . . . . . 1 . . . . . Detonate 1 | . . . . . . . . . . . . . . . . . . . . 1 . . Operators 1 | . 1 . . . . . . . . . . . . . . . . . . . . . Fabricators . | . . . . . . . . . . . . . . . . . . . . . . . Repair Stations . | . . . . . . . . . . . . . . . . . . . . . . . Recycling Units 1 | . . . . . . . . . . 1 . . . . . . . . . . . . Recyclers 1 | . . . . . . . . . . 1 . . . . . . . . . . . . Scanalyzers . | . . . . . . . . . . . . . . . . . . . . . . . Garrison Access . | . . . . . . . . . . . . . . . . . . . . . . . Data Cores Recovered 2 | . . . . . 1 . . . . . . . . . . . 1 . . . . . Used . | . . . . . . . . . . . . . . . . . . . . . . . Hacking Detections 23 | . . . . 2 4 . . . . 2 . . . . 3 . 4 2 . 2 2 2 Full Trace Events 5 | . . . . 1 . . . . . 2 . . . . . . 1 . . . 1 . Feedback Events 2 | . . . . . . . . . . 1 . . . . . . . . . . 1 . Hackware Fried 2 | . . . . . . . . . . 1 . . . . . . . . . . 1 . Feedback Blocked 1 | . . . . . . . . . . 1 . . . . . . . . . . . . Robot Schematics Acquired 7 | . . . . . 1 . . . . . . . 6 . . . . . . . . . Robots Built . | . . . . . . . . . . . . . . . . . . . . . . . Authchips . | . . . . . . . . . . . . . . . . . . . . . . . Time . | . . . . . . . . . . . . . . . . . . . . . . . Total Robot Build Rating . | . . . . . . . . . . . . . . . . . . . . . . . Part Schematics Acquired 16 | . . . . . 1 . . 2 . . . . 12 . . . 1 . . . . . Parts Built 3 | . . . . . 2 . . . . 1 . . . . . . . . . . . . Authchips . | . . . . . . . . . . . . . . . . . . . . . . . Time 159 | . . . . . 106 . . . . 53 . . . . . . . . . . . . Total Part Build Rating 18 | . . . . . 12 . . . . 6 . . . . . . . . . . . . Part Studies Acquired 10 | . . . . 5 . . . . . . . . . . 2 . . . 3 . . . Parts Repaired . | . . . . . . . . . . . . . . . . . . . . . . . Time . | . . . . . . . . . . . . . . . . . . . . . . . Parts Recycled . | . . . . . . . . . . . . . . . . . . . . . . . Recycled Matter . | . . . . . . . . . . . . . . . . . . . . . . . Retrieved Matter . | . . . . . . . . . . . . . . . . . . . . . . . Retrieved Components . | . . . . . . . . . . . . . . . . . . . . . . . Parts Scanalyzed 1 | . . . . . . . . . . . . . . . . . . . . . . 1 Part Schematics Acquired . | . . . . . . . . . . . . . . . . . . . . . . . Parts Damaged 1 | . . . . . . . . . . . . . . . . . . . . . . 1 Bothacking | -11 -10 -9 -9 -8 -7 -7 -7 -7 -6 -6 -6 -6 -6 -5 -5 -4 -4 -4 -3 -2 -2 -2 ------------ Run | Yrd Mat Mat Min Mat Fac Low Low Zio Pro Fac Low Low Dat Pro Fac Fac Ext Cet Res Res Tes Sec Used RIF Installer . | . . . . . . . . . . . . . . . . . . . . . . . Robots Hacked . | . . . . . . . . . . . . . . . . . . . . . . . Non-combat . | . . . . . . . . . . . . . . . . . . . . . . . Combat . | . . . . . . . . . . . . . . . . . . . . . . . Robot Hacks Applied . | . . . . . . . . . . . . . . . . . . . . . . . Relay Couplers Released 5 | . . . . . . . . . . . . . . . . . . . 3 . . 2 Machine Destruction 5 | . . . . . . . . . . . . . . . . . . . 3 . . 2 Fabnet Peak Effective % . | . . . . . . . . . . . . . . . . . . . . . . . Robots Rewired 10 | . . . . . . . . . . . . . . . . . 10 . . . . . Allies Hacked . | . . . . . . . . . . . . . . . . . . . . . . . Hacks Repelled . | . . . . . . . . . . . . . . . . . . . . . . . Allies | -11 -10 -9 -9 -8 -7 -7 -7 -7 -6 -6 -6 -6 -6 -5 -5 -4 -4 -4 -3 -2 -2 -2 -------- Run | Yrd Mat Mat Min Mat Fac Low Low Zio Pro Fac Low Low Dat Pro Fac Fac Ext Cet Res Res Tes Sec Total Allies 11 | . . . . . . . . . . . . . . . . . 11 . . . . . Largest Group 7 | . . . . . . . . . . . . . . . . . 7 1 . . . . Highest-Rated Group 278 | . . . . . . . . . . . . . . . . . 278 51 . . . . Highest-Rated Ally 51 | . . . . . . . . . . . . . . . . . 51 51 . . . . Total Orders . | . . . . . . . . . . . . . . . . . . . . . . . Ally Attacks 66 | . . . . . . . . . . . . . . . . . 64 2 . . . . Total Damage 1750 | . . . . . . . . . . . . . . . . . 1691 59 . . . . Kills 16 | . . . . . . . . . . . . . . . . . 16 . . . . . Allies Corrupted . | . . . . . . . . . . . . . . . . . . . . . . . Allies Melted . | . . . . . . . . . . . . . . . . . . . . . . . Intel | -11 -10 -9 -9 -8 -7 -7 -7 -7 -6 -6 -6 -6 -6 -5 -5 -4 -4 -4 -3 -2 -2 -2 ------- Run | Yrd Mat Mat Min Mat Fac Low Low Zio Pro Fac Low Low Dat Pro Fac Fac Ext Cet Res Res Tes Sec Active Infowar (turns) 5476 | 47 266 320 260 116 34 . . . . 20 164 48 . . 319 4 504 446 1794 1134 . . Optics 3878 | . . . . . . . . . . . . . . . . . 504 446 1794 1134 . . Sensors 552 | . . . . . . . . . . 20 164 48 . . 316 4 . . . . . . Terrain 1043 | 47 266 320 260 116 34 . . . . . . . . . . . . . . . . . Jamming 641 | . . . . . . . . . . . . . . . 3 . . . 638 . . . Robot Analysis Total . | . . . . . . . . . . . . . . . . . . . . . . . Derelict Logs Recovered 8 | . . . 1 . . 1 2 2 1 . . . . 1 . . . . . . . . Drone Launches . | . . . . . . . . . . . . . . . . . . . . . . . Drone Recoveries . | . . . . . . . . . . . . . . . . . . . . . . . Exploration | -11 -10 -9 -9 -8 -7 -7 -7 -7 -6 -6 -6 -6 -6 -5 -5 -4 -4 -4 -3 -2 -2 -2 ------------- Run | Yrd Mat Mat Min Mat Fac Low Low Zio Pro Fac Low Low Dat Pro Fac Fac Ext Cet Res Res Tes Sec Turns Passed 8572 | 108 266 320 260 116 179 172 222 313 92 159 164 64 22 163 669 572 858 446 1794 1134 278 201 Spaces Moved 8210 | 52 105 145 143 233 307 444 407 1020 286 380 292 181 84 257 864 296 390 241 1162 469 262 190 Core 408 | 6 . . . . . . . . . . . . . 15 112 6 . . . 5 195 69 Treads 833 | 46 105 145 143 . . . . . . . . . . . 3 . . . . 324 67 . Legs 2341 | . . . . . . . . . . . . . . . 179 266 390 241 1162 17 . 86 Wheels 123 | . . . . . . . . . . . . . . . . . . . . 123 . . Hover 48 | . . . . . . . . . . . . . . . 48 . . . . . . . Flight 4422 | . . . . 233 307 444 407 1020 286 380 292 181 84 242 522 24 . . . . . . Fastest Speed 26 | 50 160 160 160 28 26 28 28 28 31 28 27 26 26 26 32 32 133 133 105 50 50 50 Average Speed 73 | 147 160 160 160 28 26 28 28 29 31 30 28 26 26 35 59 131 134 133 124 132 78 91 Slowest Speed 200 | 160 160 160 160 31 28 28 28 31 31 31 31 26 26 115 200 150 140 133 140 160 150 200 Overloaded Moves . | . . . . . . . . . . . . . . . . . . . . . . . Propulsion Burnouts . | . . . . . . . . . . . . . . . . . . . . . . . Robots Hopped 28 | . . . . 3 6 . 1 . . 3 8 1 . 1 5 . . . . . . . Potential Cave-ins 2 | . . . . . . . . . . . . . . . . . . . . 2 . . Cave-ins Triggered 1 | . . . . . . . . . . . . . . . . . . . . 1 . . Microwarps 2 | . . . . . . . . . . . . . . . . . . . . . . 2 Exploration Rate (%) 37 | 4 19 25 33 22 12 61 71 85 46 16 40 36 73 42 28 8 58 77 42 11 40 12 Regions Visited 22 Branch Regions 13 Pre-discovered Areas 2 | . . . . . . . . . . . . . 1 1 . . . . . . . . Known Exits Taken 8 | . . . . . 1 . . . . 1 . . . . 1 1 1 1 1 1 . . Unknown Exits Taken 14 | 1 1 1 1 1 . 1 1 1 1 . 1 1 1 1 . . . . . . 1 . Scrap Searched 10 | . . . . . . 1 4 2 1 . 1 1 . . . . . . . . . . Spaces Dug 38 | . . . . . . . . . . 4 . . . . 1 3 . . . 30 . . Terrain Destroyed 206 | . . 20 . . . . 12 . . 4 . . . 1 1 33 10 23 33 69 . . Melee 4 | . . . . . . . . . . . . . . . 1 3 . . . . . . Projectile 114 | . . . . . . . . . . . . . . 1 . 5 10 23 33 42 . . AOE 88 | . . 20 . . . . 12 . . 4 . . . . . 25 . . . 27 . . Terrain Rammed 2 | . . . . . . . . . . . . . . . . . . . . . . 2 Walls Destroyed . | . . . . . . . . . . . . . . . . . . . . . . . Machines Disabled . | . . . . . . . . . . . . . . . . . . . . . . . Actions | -11 -10 -9 -9 -8 -7 -7 -7 -7 -6 -6 -6 -6 -6 -5 -5 -4 -4 -4 -3 -2 -2 -2 --------- Run | Yrd Mat Mat Min Mat Fac Low Low Zio Pro Fac Low Low Dat Pro Fac Fac Ext Cet Res Res Tes Sec Total 10072 | 72 191 187 164 268 394 474 495 1035 288 411 359 195 83 297 980 398 645 300 1397 899 329 211 Wait 1082 | 7 80 12 2 12 59 20 69 10 . 14 71 14 . 5 63 41 76 3 99 339 50 36 Move 8100 | 51 104 144 142 226 294 443 404 1019 285 373 275 178 83 254 853 295 389 240 1161 469 261 157 Hop 28 | . . . . 3 6 . 1 . . 3 8 1 . 1 5 . . . . . . . Pick Up 65 | 3 1 1 6 4 5 . 3 2 1 2 . . . 2 9 2 5 4 5 4 3 3 Fast Attach 90 | 7 . 2 . 2 1 . . . . 2 1 1 . 4 11 9 10 3 17 14 4 2 Attach 48 | . . 1 . 4 2 1 1 . . 4 2 1 . 2 11 5 3 2 3 1 3 2 Detach 14 | . . . . 1 . . . . . 2 . . . 2 4 3 1 . . 1 . . Swap 80 | . . 6 2 4 9 . 4 1 1 3 . . . 1 . 3 14 8 21 3 . . Drop 124 | . . 1 6 6 13 . 2 3 1 2 . . . 4 5 . 18 11 28 17 4 3 Fire 314 | 4 6 20 6 6 5 10 11 . . 5 2 . . 14 15 33 40 29 63 44 1 . Melee 25 | . . . . . . . . . . 1 . . . 8 2 7 1 . . 3 1 2 Ram 8 | . . . . . . . . . . . . . . . 1 . . . . 1 . 6 Kick . | . . . . . . . . . . . . . . . . . . . . . . . Crush 6 | . . . . . . . . . . . . . . . 1 . . . . 3 2 . Escape Stasis . | . . . . . . . . . . . . . . . . . . . . . . . Rewire 88 | . . . . . . . . . . . . . . . . . 88 . . . . . Trap . | . . . . . . . . . . . . . . . . . . . . . . . Miscellaneous . | . . . . . . . . . . . . . . . . . . . . . . . Route ------- -11/Scrapyard -10/Materials -9/Materials -9/Mines -8/Materials -7/Factory (discovered 2 exits: *Low x2) -7/Lower Caves -7/Lower Caves -7/Zion -6/Proximity Caves -6/Factory -6/Lower Caves -6/Lower Caves (discovered 2 exits: *Fac / *Dat) -6/Data Miner -5/Proximity Caves -5/Factory -4/Factory -4/Extension (discovered 2 exits: *Res / *Cet) -4/Cetus (discovered 3 exits: *Res x2 / [*Arc]) -3/Research (discovered 2 exits: *Res / *Arm) -2/Research -2/Testing (discovered 2 exits: *Sec / [*Frg]) -2/Section 7 History --------- Turn | Location | Event 3 | -11/Scrapyard | Discovered new exit (range 15) 109 | -11/Scrapyard | Entered Materials 300 | -10/Materials | Build established: Mutant 357 | -10/Materials | Discovered new exit (range 5) 375 | -10/Materials | Entered another Materials area 375 | -9/Materials | Evolved 2 slots: Propulsion x1, Weapon x1 626 | -9/Materials | Discovered new exit (range 16) 695 | -9/Materials | Entered Mines 728 | -9/Mines | Met a Derelict bent on vengeance 753 | -9/Mines | Build established: Scavenger-Skirmisher 810 | -9/Mines | Learned Materials emergency access door positions 846 | -9/Mines | A weapon hastily lodged in a ceiling crevice suddenly fell to the ground 891 | -9/Mines | Found a hidden stash of uninstalled traps 933 | -9/Mines | Discovered new exit (range 9) 955 | -9/Mines | Entered Materials 955 | -8/Materials | Evolved 2 slots: Propulsion x2 969 | -8/Materials | Central database locked down 1058 | -8/Materials | Discovered new exit (range 16) 1071 | -8/Materials | Entered Factory 1071 | -7/Factory | Evolved 2 slots: Utility x2 1072 | -7/Factory | Identified exit to Lower Caves 1245 | -7/Factory | Fabricated KE Penetrator? 1250 | -7/Factory | Entered Lower Caves 1251 | -7/Lower Caves | Spotted B-75 Beast 1340 | -7/Lower Caves | Learned Factory garrison access intel 1343 | -7/Lower Caves | Attracted the attention of an 0b10 outpost 1416 | -7/Lower Caves | Discovered new exit (range 9) 1422 | -7/Lower Caves | Entered another Lower Caves area 1441 | -7/Lower Caves | Learned Factory trap positions 1526 | -7/Lower Caves | Learned Factory security intel 1550 | -7/Lower Caves | Build established: Hacker-Sprinter 1641 | -7/Lower Caves | Discovered new exit (range 7) 1644 | -7/Lower Caves | Entered Zion 1656 | -7/Zion | System corruption cleaned by Quarantine Array 1671 | -7/Zion | Learned Factory garrison access intel 1774 | -7/Zion | Found CR-A16's Pointy Stick 1888 | -7/Zion | Found Prototype Device 1934 | -7/Zion | Discovered new exit (range 13) 1957 | -7/Zion | Entered Proximity Caves 2047 | -6/Proximity Caves | Discovered new exit (range 5) 2049 | -6/Proximity Caves | Entered Factory 2049 | -6/Factory | Evolved 2 slots: Utility x2 2050 | -6/Factory | Identified exit to Lower Caves 2051 | -6/Factory | Loaded intel: 81 trap records 2053 | -6/Factory | Loaded intel: 4 garrison access locations 2108 | -6/Factory | Fabricated Nuclear Pulse Array? 2123 | -6/Factory | System Shield fried by hacking feedback 2208 | -6/Factory | Entered Lower Caves 2292 | -6/Lower Caves | Encountered a Warlord checkpoint 2362 | -6/Lower Caves | Discovered new exit (range 9) 2372 | -6/Lower Caves | Entered another Lower Caves area 2375 | -6/Lower Caves | Discovered new exit (range 10) 2399 | -6/Lower Caves | Lost 3 parts (1n2w) 2421 | -6/Lower Caves | Ambushed by research squad 2435 | -6/Lower Caves | Discovered new exit (range 6) 2436 | -6/Lower Caves | Entered Data Miner 2436 | -6/Data Miner | Discovered new exit (range 6) 2441 | -6/Data Miner | Met Data Miner 2448 | -6/Data Miner | Learned location of Section 7 (-2) 2448 | -6/Data Miner | Acquired the access code to Warlord's prototype stash 2452 | -6/Data Miner | Received God Mode back door access code from Data Miner 2458 | -6/Data Miner | Entered Proximity Caves 2513 | -5/Proximity Caves | Learned location of Armory (-3) 2515 | -5/Proximity Caves | Lost 4 parts (1n2u1w) 2534 | -5/Proximity Caves | Spotted B-75 Beast 2559 | -5/Proximity Caves | Revealed the true nature of CR-A16's Pointy Stick 2563 | -5/Proximity Caves | Destroyed B-75 Beast 2588 | -5/Proximity Caves | Lost 10 parts (1p5n2u2w) 2606 | -5/Proximity Caves | Attracted the attention of an 0b10 checkpoint 2618 | -5/Proximity Caves | Discovered new exit (range 8) 2621 | -5/Proximity Caves | Entered Factory 2621 | -5/Factory | Evolved 2 slots: Power x1, Propulsion x1 2622 | -5/Factory | Loaded intel: 4 garrison access locations 2633 | -5/Factory | Identified Phasing AFG 2990 | -5/Factory | Core integrity fell below 50% 3033 | -5/Factory | Build established: Hacker-Mutant 3221 | -5/Factory | Search patrols dispatched 3286 | -5/Factory | Discovered new exit (range 10) 3290 | -5/Factory | Identified exit to Factory 3290 | -5/Factory | Entered another Factory area 3290 | -4/Factory | Evolved 2 slots: Propulsion x1, Weapon x1 3318 | -4/Factory | Lost 5 parts (2p2n1u) 3383 | -4/Factory | Lost 5 parts (2n1u2w) 3634 | -4/Factory | Build established: Hacker-Gunner 3855 | -4/Factory | Discovered new exit (range 6) 3861 | -4/Factory | Identified exit to Extension 3862 | -4/Factory | Entered Extension 4267 | -4/Extension | Rescued a captive Derelict 4406 | -4/Extension | Incoming investigation squad redirected 4474 | -4/Extension | Build established: Scavenger-Skirmisher 4479 | -4/Extension | Spotted B-86 Titan 4485 | -4/Extension | Spotted B-86 Titan 4492 | -4/Extension | Destroyed B-86 Titan 4492 | -4/Extension | Allies destroyed B-86 Titan 4523 | -4/Extension | Lost 8 allies 4665 | -4/Extension | Discovered new exit (range 20) 4665 | -4/Extension | Discovered new exit (range 20) 4700 | -4/Extension | Identified exit to Cetus 4704 | -4/Extension | Identified exit to Research 4720 | -4/Extension | Entered Cetus 4720 | -4/Cetus | Accompanied by 1 ally 4735 | -4/Cetus | Spotted Cetus Guard 4735 | -4/Cetus | Spotted Cetus Guard 4741 | -4/Cetus | Spotted Cetus Guard 4741 | -4/Cetus | Spotted Cetus Guard 4749 | -4/Cetus | Destroyed Cetus Guard 4762 | -4/Cetus | Destroyed Cetus Guard 4769 | -4/Cetus | Destroyed Cetus Guard 4777 | -4/Cetus | Destroyed Cetus Guard 4845 | -4/Cetus | Build established: Scavenger-Tank 4858 | -4/Cetus | Discovered exit to Research (range 19) 4991 | -4/Cetus | Discovered new exit (range 20) 5017 | -4/Cetus | Spotted Cetus Guard 5017 | -4/Cetus | Spotted Cetus Guard 5025 | -4/Cetus | Spotted Cetus Guard 5036 | -4/Cetus | Destroyed Cetus Guard 5043 | -4/Cetus | Destroyed Cetus Guard 5043 | -4/Cetus | Destroyed Cetus Guard 5044 | -4/Cetus | Spotted Cetus Guard 5064 | -4/Cetus | Destroyed Cetus Guard 5073 | -4/Cetus | Discovered exit to Research (range 20) 5087 | -4/Cetus | Met Revision 17 5166 | -4/Cetus | Entered Research 5166 | -3/Research | Evolved 2 slots: Utility x2 5366 | -3/Research | Revision forces began assault on 0b10 5368 | -3/Research | Met up with Revision 17++ 5556 | -3/Research | Spotted B-86 Titan 5649 | -3/Research | Lost 6 allies 5744 | -3/Research | Discovered new exit (range 14) 5761 | -3/Research | Identified exit to Armory 5866 | -3/Research | Research terminal network offline 5959 | -3/Research | Spotted B-86 Titan 6328 | -3/Research | Spotted Striker 6331 | -3/Research | Spotted Striker 6336 | -3/Research | Destroyed Striker 6573 | -3/Research | Spotted Executioner 6574 | -3/Research | Spotted Striker 6626 | -3/Research | Destroyed Striker 6639 | -3/Research | Destroyed Executioner 6748 | -3/Research | Central database locked down 6818 | -3/Research | Spotted Striker 6819 | -3/Research | Spotted Striker 6840 | -3/Research | Destroyed Striker 6840 | -3/Research | Destroyed Striker 6896 | -3/Research | Lost 5 parts (1n2u2w) 6897 | -3/Research | Discovered new exit (range 9) 6904 | -3/Research | Identified exit to Research 6960 | -3/Research | Entered another Research area 6960 | -2/Research | Evolved 2 slots: Power x1, Weapon x1 7605 | -2/Research | Crushed by falling debris 7605 | -2/Research | System corruption reached 10% 7636 | -2/Research | Lost 3 parts (2p1w) 7885 | -2/Research | Lost 3 parts (3u) 8075 | -2/Research | Discovered new exit (range 10) 8089 | -2/Research | System corruption reached 30% 8094 | -2/Research | Identified exit to Testing 8094 | -2/Research | Entered Testing 8125 | -2/Testing | Lost 13 parts (1p4n4u4w) 8139 | -2/Testing | Imp. Hacking Suite fried by hacking feedback 8220 | -2/Testing | Found Portable AFG 8264 | -2/Testing | Core integrity fell below 50% 8317 | -2/Testing | Core integrity fell below 20% 8334 | -2/Testing | Spotted Fortress 8353 | -2/Testing | Build established: Mutant 8370 | -2/Testing | Discovered new exit (range 6) 8370 | -2/Testing | Discovered new exit (range 7) 8372 | -2/Testing | Entered Section 7 8524 | -2/Section 7 | Found Alien Artifact 8544 | -2/Section 7 | Identified Microwarp Drive 8564 | -2/Section 7 | Spotted S7 Guard 8573 | -2/Section 7 | Destroyed by G-73 Enforcer with Phase Gun Last Messages --------------- 08541_ Sneak attack on K-01 Serf. 08541_ K-01 Serf destroyed. 08543_ Acquired 20 matter. 08544_ Dropped Broken Myomer Leg+. 08544_ Identified Microwarp Drive. 08547_ Acquired Lgt. Ion Engine. 08552_ Acquired Q-thruster. 08562_ ALERT: Garrison Access compromised, dispatching multiple assault carriers. 08562_ Garrison Access disabled. 08562_ Relay Coupler [Hunter] tumbles out of Garrison Access. 08562_ Relay Coupler [Sentry] tumbles out of Garrison Access. 08562_ K-01 Serf cleans the Dark Matter Chamber. 08563_ Microwarped (distance 6). 08570_ K-01 Serf collects debris. 08572_ R-10 Processor collects Broken Myomer Leg+. 08572_ Microwarped (distance 29). Map ----- +----------------------------------------------------+ | ?????????????????????????????????????????????????? | | ?????????????????????????????????????????????????? | | ?????????????????????????????????????????????????? | | ?????????????????????????????????????????????????? | | ?????????????????????????????????????????????????? | | ?????????????????????????????????????????????????? | | ?????????????????????????????????????????????????? | | ?????????????????????????????????????????????????? | | ?????????????????????????????????????????????????? | | ?????????????????????????????????????????????????? | | ?????????????????????????????????????????????????? | | ?????????????????????????????????????????????????? | | ?????????????????????????????????????????????????? | | ?????????????????????????????????????????????????? | | ?????????????????????????????????????????????????? | | ?????????????????????????????????????????????????? | | ?????????????????????????????????????????????????? | | ?????????????????????????????????????????????????? | | ?????????????????????????????????????????????????? | | ?????????????????????????????????????????????????? | | ?????????????????????????????????????????????????? | | ?????????????????????????????????????????????????? | | ?????????????????????????????????????????????????? | | ?????????????????????????????#???????????????????? | | ?????????????????##########T"### ????????? | | ?????????? @ ????????? | | ?????????????????##### gg ????????? | | ?????????????????????# A """""??????????? | | ?????????????????????# c """????????????? | | ?????????????????????# ###### ""?????????????? | | ?????????????????????# #?????? ????????????? | | ?????????????????????# #???????? ???????????? | | ?????????????????????# #?????????? ??????????? | | ?????????????????????# #??????????????????????? | | ?????????????????????# ???????????????????????? | | ?????????????????????+ ???????????????????????? | | ?????????????????????# #??????????????????????? | | ?????????????????????# #??????????????????????? | | ??????????? ?######### #??????????????????????? | | ????????? #??????????????????????? | | ???????# #??????????????????????? | | ???????# "" #??????????????????????? | | ???????# !!! """ G" #??????????????????????? | | ???????# !!! """ " #??????????????????????? | | ???????# !!! """! ! #??????????????????????? | | ?????### """ #??????????????????????? | | ????? """ #??????????????????????? | | ????? """ #??????????????????????? | | ???? """== #??????????????????????? | | ????? =! #??????????????????????? | +----------------------------------------------------+ Best States ------------- Heat Dissipation 124 Energy Generation 43 Energy Capacity 590 Matter Stores 300 Matter Capacity 300 Sight Range 20 Robot Scan Range 15 Terrain Scan Range 16 Terrain Scan Density 10 Jamming Range 16 Armor Coverage 600 Resistance: KI 20 Weapon Cycling 25 Phase Shifting 5 Evasion (%) 70 Recoil Reduction 6 Offensive Hacking 20 Defensive Hacking 22 Item Schematics ----------------- Nuclear Pulse Array | -7/Factory | Hacked Riot Gun | -7/Zion | Free Hvy. Riot Gun | -7/Zion | Free Combat Drone Bay | -6/Data Miner | Free Lgt. Regenerative Plating | -6/Data Miner | Free Enh. Flexi-carbon Leg | -6/Data Miner | Free Imp. Matter Compressor | -6/Data Miner | Free Enh. Force Rifle | -6/Data Miner | Free Myomer Leg | -6/Data Miner | Free Adv. Particle Charger | -6/Data Miner | Free Matter Neutralizer | -6/Data Miner | Free Adv. Trap Extractor | -6/Data Miner | Free Imp. Fusion Compressor | -6/Data Miner | Free Nova Cannon | -6/Data Miner | Free Quantum Rifle | -6/Data Miner | Free Q-thruster | -4/Extension | Hacked Robot Schematics ------------------ L-31 Rogue | -7/Factory | Hacked G-50 Soldier | -6/Data Miner | Free A-15 Conveyor | -6/Data Miner | Free B-48 Gladiator | -6/Data Miner | Free D-63 Destroyer | -6/Data Miner | Free M-22 Extractor | -6/Data Miner | Free O-32 Director | -6/Data Miner | Free Fabricated ------------ KE Penetrator | x2 | -7/Factory | Preloaded Nuclear Pulse Array | x1 | -6/Factory Repaired ---------- Nothing Studied --------- Flight Unit | -8/Materials | Hacked Imp. Ion Engine | -8/Materials | Hacked Lgt. Assault Rifle | -8/Materials | Hacked Imp. Light Cannon | -8/Materials | Hacked Hvy. Assault Rifle | -8/Materials | Hacked VTOL Module | -5/Factory | Hacked Autogun | -5/Factory | Hacked Flexi-carbon Leg | -3/Research | Hacked Myomer Leg | -3/Research | Hacked Imp. Thunder Leg | -3/Research | Hacked Alien Tech Used ----------------- Microwarp Drive Achievements -------------- Nope Revolutionary Research The Robot, The Myth, The Legend Challenges ------------ None Game ------ Seed FlightTargetingMantle Manual? 0 Play Time 02:04:54 Cumulative 218.3 hours Start 2026.06.26 @ 19:24:01 End 2026.06.27 @ 14:15:07 Sessions 7 Manual Loads 0 Difficulty Rogue Special Mode None Game No. 297 Rogue 297 Adventurer 0 Explorer 0 Win Type - Total 2 Types 1/0/0/1/0/0/0/0/0/0 Lore% 75 Gallery% 63 Achievement% 51 Wizard Run 0 Options --------- Layout 2 ASCII 0 Keyboard 0 Movement Mouse Keybinds 0 Fullscreen 1 Font 24/Smallcaps Map View 50x44 Zoom Use 0% Tactical HUD 1 Map Filters NONE Filters NONE Steam 1 RUN: eef2158d-6b55-4dde-aa74-bb8c04eae234